fUST/lending_fUST_20250426
["ID","MTS","AMOUNT","RATE_DAILY","PERIOD"]
[359010784,1745629846830,-500.0,0.00016986,2]
[359010785,1745629846840,-510.68000595,0.00016986,2]
[359010786,1745629846850,-500.0,0.00016986,2]
[359010787,1745629846860,-1766.48,0.00016986,2]
[359010788,1745629846870,-1317.55,0.00016986,2]
[359010789,1745629846880,-986.81,0.00016986,2]
[359010790,1745629846890,-500.0,0.00016986,2]
[359010791,1745629846899,-500.0,0.00016986,2]
[359010792,1745629846908,-500.0,0.00016986,2]
[359010793,1745629846918,-1097.54,0.00016986,2]
[359010794,1745629846927,-500.0,0.00016986,2]
[359010795,1745629846937,-500.0,0.00016986,2]
[359010796,1745629846946,-10.95314895,0.00016986,2]
[359010797,1745629847113,-489.04685105,0.00016986,2]
[359010798,1745629847124,-227.51496255,0.00016986,2]
[359010799,1745629847137,-272.48503745,0.00016986,2]
[359010800,1745629847147,-40.20510154,0.00016986,2]
[359010816,1745630067076,152.68707532,0.00013987,2]
[359010851,1745630836115,-300.0,0.00014079,2]
[359010852,1745630836144,-500.0,0.0001408,2]
[359010853,1745630836174,-411.25534831,0.0001408,2]
[359010854,1745630836202,-500.0,0.0001408,2]
[359010855,1745630836232,-500.0,0.0001408,2]
[359010856,1745630836260,-500.0,0.0001408,2]
[359010857,1745630836282,-841.0,0.0001408,2]
[359010858,1745630836305,-300.0,0.0001408,2]
[359010859,1745630836325,-539.47665157,0.0001505,2]
[359010861,1745630854100,-1057.30561563,0.0001505,2]
[359010862,1745630854123,-203.660847,0.00015139,2]
[359010863,1745630854147,-420.0,0.00015423,2]
[359010864,1745630854171,-1908.30746842,0.00015424,2]
[359010865,1745630854201,-329.59567725,0.00015968,2]
[359010886,1745630989605,1654.0,0.00027,30]
[359010911,1745631032201,-300.0,0.00015967,2]
[359010912,1745631032211,-500.0,0.00015967,2]
[359010913,1745631032221,-500.0,0.00015967,2]
[359010914,1745631032233,-12579.26882624,0.00015968,2]
[359010915,1745631032244,-160.0,0.00015968,2]
[359010916,1745631032255,-160.0,0.00015968,2]
[359010917,1745631032264,-420.98395174,0.00015968,2]
[359010919,1745631032273,-160.0,0.00015968,2]
[359010921,1745631032282,-313.10658385,0.00015968,2]
[359010923,1745631032293,-840.21051354,0.00015968,2]
[359010924,1745631032302,-160.0,0.00015968,2]
[359010925,1745631032311,-160.0,0.00015968,2]
[359010927,1745631032321,-706.0,0.00016133,2]
[359010929,1745631032336,-2247.0,0.00016133,2]
[359010931,1745631032346,-403.0,0.00016133,2]
[359010933,1745631032356,-403.0,0.00016133,2]
[359010935,1745631032367,-153.0,0.000162,2]
[359010937,1745631032377,-153.0,0.00016278,2]
[359010939,1745631032386,-177.095,0.00016337,2]
[359010941,1745631032397,-1584.04307157,0.00016338,2]
[359010943,1745631032409,-151.0,0.00016428,2]
[359010945,1745631032419,-214.75713509,0.00016428,2]
[359010947,1745631032428,-500.0,0.00016438,2]
[359010949,1745631032437,-500.0,0.00016438,2]
[359010951,1745631032447,-500.0,0.00016438,2]
[359010953,1745631032457,-500.0,0.00016438,2]
[359010955,1745631032466,-500.0,0.00016438,2]
[359010957,1745631032476,-500.0,0.00016438,2]
[359010959,1745631032486,-303.10841767,0.00016438,2]
[359010961,1745631032496,-500.0,0.00016438,2]
[359010963,1745631032505,-500.0,0.00016438,2]
[359010965,1745631032515,-500.0,0.00016438,2]
[359010967,1745631032524,-500.0,0.00016438,2]
[359010969,1745631032533,-500.0,0.00016438,2]
[359010970,1745631032543,-500.0,0.00016438,2]
[359010971,1745631032552,-500.0,0.00016438,2]
[359010972,1745631032562,-447.05090459,0.00016438,2]
[359010973,1745631032571,-408.05870946,0.00016438,2]
[359010974,1745631032583,-91.94129054,0.00016438,2]
[359010975,1745631032593,-500.0,0.00016438,2]
[359010976,1745631032603,-214.2981226,0.00016438,2]
[359010977,1745631032613,-511.53305846,0.00016438,2]
[359010978,1745631032622,-500.0,0.00016438,2]
[359010979,1745631032631,-500.0,0.00016438,2]
[359010980,1745631032641,-500.0,0.00016438,2]
[359010981,1745631032650,-500.0,0.00016438,2]
[359010982,1745631032660,-500.0,0.00016438,2]
[359010983,1745631032669,-230.94475301,0.00016438,2]
[359010995,1745631038278,-322.23783079,0.00016436,2]
[359010996,1745631038289,-500.0,0.00016436,2]
[359010997,1745631038300,-238.2550843,0.00016436,2]
[359010998,1745631038312,-338.8247689,0.00016436,2]
[359011153,1745631043431,-1734.57417888,0.00016338,2]
[359011154,1745631043443,-161.1752311,0.00016436,2]
[359011155,1745631043452,-343.05112553,0.00016436,2]
[359011156,1745631043462,-269.05524699,0.00016438,2]
[359011157,1745631043471,-500.0,0.00016438,2]
[359011158,1745631043482,-500.0,0.00016438,2]
[359011160,1745631043492,-500.0,0.00016438,2]
[359011163,1745631043504,-500.0,0.00016438,2]
[359011164,1745631043513,-500.0,0.00016438,2]
[359011165,1745631043522,-500.0,0.00016438,2]
[359011166,1745631043532,-500.0,0.00016438,2]
[359011167,1745631043541,-500.0,0.00016438,2]
[359011168,1745631043553,-500.0,0.00016438,2]
[359011169,1745631043564,-500.0,0.00016438,2]
[359011170,1745631043574,-519.67161826,0.00016438,2]
[359011171,1745631043584,-500.0,0.00016438,2]
[359011172,1745631043594,-500.0,0.00016438,2]
[359011173,1745631043604,-843.56,0.00016438,2]
[359011174,1745631043613,-500.0,0.00016438,2]
[359011175,1745631043623,-500.0,0.00016438,2]
[359011176,1745631043632,-500.0,0.00016438,2]
[359011177,1745631043641,-500.0,0.00016438,2]
[359011178,1745631043651,-693.06,0.00016438,2]
[359011179,1745631043661,-500.0,0.00016438,2]
[359011180,1745631043671,-500.0,0.00016438,2]
[359011181,1745631043681,-500.0,0.00016438,2]
[359011182,1745631043691,-262.85,0.00016438,2]
[359011183,1745631043701,-327.27635408,0.00016438,2]
[359011184,1745631043711,-500.0,0.00016438,2]
[359011185,1745631043722,-1158.45,0.00016438,2]
[359011186,1745631043732,-500.0,0.00016438,2]
[359011187,1745631043741,-500.0,0.00016438,2]
[359011188,1745631043751,-526.06,0.00016438,2]
[359011189,1745631043761,-500.0,0.00016438,2]
[359011190,1745631043771,-500.0,0.00016438,2]
[359011191,1745631043780,-500.0,0.00016438,2]
[359011192,1745631043790,-500.0,0.00016438,2]
[359011193,1745631043800,-500.0,0.00016438,2]
[359011194,1745631043810,-500.0,0.00016438,2]
[359011195,1745631043821,-500.0,0.00016438,2]
[359011196,1745631043830,-500.0,0.00016438,2]
[359011197,1745631043840,-863.46,0.00016438,2]
[359011198,1745631043851,-500.0,0.00016438,2]
[359011199,1745631043861,-500.0,0.00016438,2]
[359011200,1745631043871,-500.0,0.00016438,2]
[359011201,1745631043880,-500.0,0.00016438,2]
[359011202,1745631043890,-582.42,0.00016438,2]
[359011203,1745631043900,-968.31,0.00016438,2]
[359011204,1745631043909,-500.0,0.00016438,2]
[359011205,1745631043919,-500.0,0.00016438,2]
[359011206,1745631043928,-5253.35,0.00016438,2]
[359011207,1745631043939,-500.0,0.00016438,2]
[359011208,1745631043948,-593.55,0.00016438,2]
[359011209,1745631043958,-500.0,0.00016438,2]
[359011210,1745631043967,-500.0,0.00016438,2]
[359011211,1745631043977,-550.03,0.00016438,2]
[359011213,1745631043987,-500.0,0.00016438,2]
[359011214,1745631043997,-500.0,0.00016438,2]
[359011215,1745631044006,-185.03,0.00016438,2]
[359011216,1745631044015,-500.0,0.00016438,2]
[359011217,1745631044025,-500.0,0.00016438,2]
[359011218,1745631044035,-500.0,0.00016438,2]
[359011219,1745631044045,-500.0,0.00016438,2]
[359011220,1745631044054,-500.0,0.00016438,2]
[359011221,1745631044063,-365.84329233,0.00016438,2]
[359011222,1745631044073,-500.0,0.00016438,2]
[359011223,1745631044082,-500.0,0.00016438,2]
[359011224,1745631044091,-500.0,0.00016438,2]
[359011225,1745631044101,-500.0,0.00016438,2]
[359011226,1745631044111,-5944.64,0.00016438,2]
[359011227,1745631044121,-500.0,0.00016438,2]
[359011228,1745631044131,-500.0,0.00016438,2]
[359011229,1745631044140,-500.0,0.00016438,2]
[359011230,1745631044150,-500.0,0.00016438,2]
[359011231,1745631044160,-1199.12,0.00016438,2]
[359011232,1745631044170,-1545.67,0.00016438,2]
[359011233,1745631044179,-994.79,0.00016438,2]
[359011234,1745631044189,-500.0,0.00016438,2]
[359011235,1745631044199,-500.0,0.00016438,2]
[359011236,1745631044208,-500.0,0.00016438,2]
[359011237,1745631044218,-1056.13,0.00016438,2]
[359011238,1745631044228,-500.0,0.00016438,2]
[359011239,1745631044237,-500.0,0.00016438,2]
[359011240,1745631044247,-500.0,0.00016438,2]
[359011241,1745631044257,-500.0,0.00016438,2]
[359011242,1745631044267,-500.0,0.00016438,2]
[359011243,1745631044276,-500.0,0.00016438,2]
[359011244,1745631044286,-500.0,0.00016438,2]
[359011245,1745631044295,-500.0,0.00016438,2]
[359011246,1745631044304,-500.0,0.00016438,2]
[359011247,1745631044314,-500.0,0.00016438,2]
[359011248,1745631044328,-500.0,0.00016438,2]
[359011249,1745631044337,-500.0,0.00016438,2]
[359011250,1745631044347,-500.0,0.00016438,2]
[359011251,1745631044357,-500.0,0.00016438,2]
[359011252,1745631044368,-500.0,0.00016438,2]
[359011253,1745631044378,-500.0,0.00016438,2]
[359011254,1745631044388,-521.37185973,0.00016438,2]
[359011255,1745631044397,-500.0,0.00016438,2]
[359011256,1745631044409,-696.3,0.00016438,2]
[359011257,1745631044419,-500.0,0.00016438,2]
[359011258,1745631044428,-500.0,0.00016438,2]
[359011259,1745631044438,-500.0,0.00016438,2]
[359011260,1745631044447,-500.0,0.00016438,2]
[359011261,1745631044457,-1250.23,0.00016438,2]
[359011262,1745631044467,-500.0,0.00016438,2]
[359011263,1745631044478,-1563.76,0.00016438,2]
[359011264,1745631044488,-500.0,0.00016438,2]
[359011265,1745631044498,-500.0,0.00016438,2]
[359011266,1745631044507,-500.0,0.00016438,2]
[359011267,1745631044516,-500.0,0.00016438,2]
[359011268,1745631044526,-500.0,0.00016438,2]
[359011269,1745631044536,-500.0,0.00016438,2]
[359011270,1745631044545,-500.0,0.00016438,2]
[359011271,1745631044555,-2789.79,0.00016438,2]
[359011272,1745631044564,-1190.32,0.00016438,2]
[359011273,1745631044573,-500.0,0.00016438,2]
[359011274,1745631044583,-500.0,0.00016438,2]
[359011275,1745631044592,-1480.29,0.00016438,2]
[359011276,1745631044602,-500.0,0.00016438,2]
[359011277,1745631044613,-504.79687952,0.00016438,2]
[359011278,1745631044623,-500.0,0.00016438,2]
[359011279,1745631044633,-500.0,0.00016438,2]
[359011280,1745631044643,-500.0,0.00016438,2]
[359011281,1745631044653,-500.0,0.00016438,2]
[359011282,1745631044663,-1209.47,0.00016438,2]
[359011283,1745631044673,-500.0,0.00016438,2]
[359011284,1745631044682,-500.0,0.00016438,2]
[359011285,1745631044692,-500.0,0.00016438,2]
[359011286,1745631044702,-500.0,0.00016438,2]
[359011287,1745631044711,-509.7320097,0.00016438,2]
[359011288,1745631044721,-896.07,0.00016438,2]
[359011289,1745631044731,-500.0,0.00016438,2]
[359011290,1745631044741,-500.0,0.00016438,2]
[359011291,1745631044750,-500.0,0.00016438,2]
[359011292,1745631044760,-500.0,0.00016438,2]
[359011293,1745631044769,-500.0,0.00016438,2]
[359011294,1745631044779,-2338.53,0.00016438,2]
[359011295,1745631044788,-2021.09,0.00016438,2]
[359011296,1745631044798,-474.39960851,0.00016438,2]
[359011297,1745631044807,-755.086557,0.00016438,2]
[359011298,1745631044818,-500.0,0.00016473,2]
[359011299,1745631044828,-500.0,0.00016473,2]
[359011300,1745631044838,-500.0,0.00016473,2]
[359011301,1745631044848,-683.24,0.00016702,3]
[359011302,1745631044859,-341.62,0.00016702,3]
[359011303,1745631044869,-170.81,0.00016702,3]
[359011304,1745631044879,-512.47,0.00016702,3]
[359011305,1745631044888,-500.0,0.00016712,2]
[359011306,1745631044898,-500.0,0.00016712,2]
[359011307,1745631044908,-500.0,0.00016712,2]
[359011308,1745631044918,-179.46,0.00016712,2]
[359011309,1745631044927,-500.0,0.00016712,2]
[359011310,1745631044937,-500.0,0.00016712,2]
[359011311,1745631044946,-208.92058154,0.00016712,2]
[359011312,1745631044955,-500.0,0.00016712,2]
[359011313,1745631044965,-500.0,0.00016712,2]
[359011314,1745631044974,-500.0,0.00016712,2]
[359011315,1745631044984,-500.0,0.00016712,2]
[359011316,1745631044994,-500.0,0.00016712,2]
[359011317,1745631045160,-500.0,0.00016712,2]
[359011318,1745631045172,-558.73179044,0.00016712,2]
[359011319,1745631045181,-500.0,0.00016712,2]
[359011320,1745631045191,-500.0,0.00016712,2]
[359011321,1745631045201,-500.0,0.00016712,2]
[359011322,1745631045211,-500.0,0.00016712,2]
[359011323,1745631045221,-500.0,0.00016712,2]
[359011324,1745631045231,-500.0,0.00016712,2]
[359011325,1745631045240,-500.0,0.00016712,2]
[359011326,1745631045250,-500.0,0.00016712,2]
[359011327,1745631045260,-500.0,0.00016712,2]
[359011328,1745631045270,-646.32,0.00016712,2]
[359011329,1745631045280,-500.0,0.00016712,2]
[359011330,1745631045289,-500.0,0.00016712,2]
[359011331,1745631045299,-500.0,0.00016712,2]
[359011332,1745631045308,-500.0,0.00016712,2]
[359011333,1745631045319,-500.0,0.00016712,2]
[359011334,1745631045333,-843.56,0.00016712,2]
[359011335,1745631045343,-500.0,0.00016712,2]
[359011336,1745631045356,-507.07975169,0.00016712,2]
[359011337,1745631045366,-500.0,0.00016712,2]
[359011338,1745631045376,-500.0,0.00016712,2]
[359011339,1745631045385,-693.06,0.00016712,2]
[359011340,1745631045395,-500.0,0.00016712,2]
[359011341,1745631045405,-500.0,0.00016712,2]
[359011342,1745631045415,-500.0,0.00016712,2]
[359011343,1745631045424,-500.0,0.00016712,2]
[359011344,1745631045434,-1158.45,0.00016712,2]
[359011345,1745631045445,-500.0,0.00016712,2]
[359011346,1745631045455,-500.0,0.00016712,2]
[359011347,1745631045465,-526.06,0.00016712,2]
[359011348,1745631045475,-500.0,0.00016712,2]
[359011349,1745631045484,-647.70236757,0.00016712,2]
[359011350,1745631045493,-500.0,0.00016712,2]
[359011351,1745631045502,-500.0,0.00016712,2]
[359011352,1745631045513,-500.0,0.00016712,2]
[359011353,1745631045523,-500.0,0.00016712,2]
[359011354,1745631045535,-500.0,0.00016712,2]
[359011355,1745631045545,-500.0,0.00016712,2]
[359011356,1745631045555,-863.46,0.00016712,2]
[359011357,1745631045565,-500.0,0.00016712,2]
[359011358,1745631045575,-500.0,0.00016712,2]
[359011359,1745631045585,-500.0,0.00016712,2]
[359011360,1745631045594,-500.0,0.00016712,2]
[359011361,1745631045605,-582.42,0.00016712,2]
[359011362,1745631045615,-968.31,0.00016712,2]
[359011363,1745631045625,-500.0,0.00016712,2]
[359011364,1745631045634,-500.0,0.00016712,2]
[359011365,1745631045643,-5253.35,0.00016712,2]
[359011367,1745631045653,-500.0,0.00016712,2]
[359011368,1745631045663,-593.55,0.00016712,2]
[359011369,1745631045673,-500.0,0.00016712,2]
[359011370,1745631045682,-550.03,0.00016712,2]
[359011371,1745631045692,-500.0,0.00016712,2]
[359011372,1745631045701,-500.0,0.00016712,2]
[359011373,1745631045711,-500.0,0.00016712,2]
[359011374,1745631045720,-517.97,0.00016712,2]
[359011375,1745631045732,-636.58,0.00016712,2]
[359011376,1745631045741,-500.0,0.00016712,2]
[359011377,1745631045750,-500.0,0.00016712,2]
[359011378,1745631045760,-500.0,0.00016712,2]
[359011379,1745631045769,-500.0,0.00016712,2]
[359011380,1745631045780,-500.0,0.00016712,2]
[359011381,1745631045789,-500.0,0.00016712,2]
[359011382,1745631045799,-5944.64,0.00016712,2]
[359011383,1745631045808,-500.0,0.00016712,2]
[359011384,1745631045818,-566.34,0.00016712,2]
[359011385,1745631045828,-500.0,0.00016712,2]
[359011386,1745631045837,-500.0,0.00016712,2]
[359011387,1745631045847,-1199.12,0.00016712,2]
[359011388,1745631045858,-1545.67,0.00016712,2]
[359011389,1745631045868,-994.79,0.00016712,2]
[359011390,1745631045877,-500.0,0.00016712,2]
[359011391,1745631045887,-500.0,0.00016712,2]
[359011392,1745631045897,-500.0,0.00016712,2]
[359011393,1745631045906,-1056.13,0.00016712,2]
[359011395,1745631045916,-537.96,0.00016712,2]
[359011397,1745631045925,-500.0,0.00016712,2]
[359011398,1745631045934,-500.0,0.00016712,2]
[359011399,1745631045944,-500.0,0.00016712,2]
[359011400,1745631045953,-210.36488602,0.00016712,2]
[359011401,1745631045963,-500.0,0.00016712,2]
[359011402,1745631045972,-500.0,0.00016712,2]
[359011403,1745631045982,-500.0,0.00016712,2]
[359011404,1745631045991,-500.0,0.00016712,2]
[359011405,1745631046001,-500.0,0.00016712,2]
[359011406,1745631046011,-500.0,0.00016712,2]
[359011407,1745631046020,-500.0,0.00016712,2]
[359011408,1745631046030,-500.0,0.00016712,2]
[359011409,1745631046040,-500.0,0.00016712,2]
[359011410,1745631046050,-500.0,0.00016712,2]
[359011411,1745631046059,-500.0,0.00016712,2]
[359011412,1745631046068,-696.3,0.00016712,2]
[359011413,1745631046077,-500.0,0.00016712,2]
[359011414,1745631046087,-500.0,0.00016712,2]
[359011415,1745631046097,-338.46,0.00016712,2]
[359011416,1745631046108,-1250.23,0.00016712,2]
[359011417,1745631046117,-500.0,0.00016712,2]
[359011418,1745631046127,-1563.76,0.00016712,2]
[359011419,1745631046136,-500.0,0.00016712,2]
[359011420,1745631046145,-500.0,0.00016712,2]
[359011421,1745631046155,-500.0,0.00016712,2]
[359011422,1745631046164,-500.0,0.00016712,2]
[359011423,1745631046176,-500.0,0.00016712,2]
[359011424,1745631046185,-186.75,0.00016712,2]
[359011425,1745631046195,-500.0,0.00016712,2]
[359011426,1745631046204,-2789.79,0.00016712,2]
[359011427,1745631046213,-1190.32,0.00016712,2]
[359011428,1745631046223,-500.0,0.00016712,2]
[359011429,1745631046232,-500.0,0.00016712,2]
[359011430,1745631046242,-1480.29,0.00016712,2]
[359011431,1745631046252,-500.0,0.00016712,2]
[359011432,1745631046262,-500.0,0.00016712,2]
[359011433,1745631046271,-500.0,0.00016712,2]
[359011434,1745631046281,-500.0,0.00016712,2]
[359011435,1745631046292,-500.0,0.00016712,2]
[359011436,1745631046302,-1209.47,0.00016712,2]
[359011437,1745631046314,-500.0,0.00016712,2]
[359011438,1745631046326,-500.0,0.00016712,2]
[359011439,1745631046336,-500.0,0.00016712,2]
[359011440,1745631046346,-500.0,0.00016712,2]
[359011441,1745631046355,-896.07,0.00016712,2]
[359011442,1745631046366,-500.0,0.00016712,2]
[359011443,1745631046375,-186.72623624,0.00016712,2]
[359011444,1745631046384,-557.03745272,0.00016712,2]
[359011445,1745631046394,-500.0,0.00016712,2]
[359011446,1745631046406,-500.0,0.00016712,2]
[359011447,1745631046416,-2338.53,0.00016712,2]
[359011448,1745631046425,-2021.09,0.00016712,2]
[359011449,1745631046436,-153.0,0.000168,2]
[359011450,1745631046446,-2992.2941702,0.00016816,2]
[359011451,1745631046458,-1454.01336238,0.000169,2]
[359011452,1745631046468,-500.0,0.00016973,2]
[359011453,1745631046478,-378.63524468,0.00016973,2]
[359011454,1745631046489,-500.0,0.00016973,2]
[359011455,1745631046500,-500.0,0.00016973,2]
[359011456,1745631046510,-500.0,0.00016973,2]
[359011457,1745631046520,-484.66707543,0.00016973,2]
[359011458,1745631046531,-500.0,0.00016973,2]
[359011459,1745631046542,-500.0,0.00016973,2]
[359011460,1745631046552,-500.0,0.00016973,2]
[359011461,1745631046562,-500.0,0.00016973,2]
[359011462,1745631046571,-500.0,0.00016973,2]
[359011463,1745631046580,-500.0,0.00016973,2]
[359011464,1745631046590,-500.0,0.00016973,2]
[359011465,1745631046601,-500.0,0.00016973,2]
[359011466,1745631046612,-500.0,0.00016973,2]
[359011467,1745631046621,-500.0,0.00016973,2]
[359011468,1745631046631,-500.0,0.00016973,2]
[359011469,1745631046640,-500.0,0.00016973,2]
[359011470,1745631046649,-305.61940408,0.00016973,2]
[359011471,1745631046658,-500.0,0.00016973,2]
[359011472,1745631046668,-500.0,0.00016973,2]
[359011473,1745631046677,-500.0,0.00016973,2]
[359011474,1745631046686,-500.0,0.00016973,2]
[359011475,1745631046696,-500.0,0.00016973,2]
[359011476,1745631046705,-500.0,0.00016973,2]
[359011477,1745631046714,-500.0,0.00016973,2]
[359011478,1745631046723,-501.48980215,0.00016973,2]
[359011479,1745631046733,-610.43878492,0.00016973,2]
[359011480,1745631046742,-500.0,0.00016973,2]
[359011481,1745631046752,-500.0,0.00016973,2]
[359011482,1745631046761,-500.0,0.00016973,2]
[359011483,1745631046771,-500.0,0.00016973,2]
[359011484,1745631046780,-399.20468294,0.00016973,2]
[359011485,1745631046790,-79457.07529337,0.00016985,2]
[359011486,1745631046799,-250.0,0.00016985,2]
[359011487,1745631046808,-250.0,0.00016985,2]
[359011488,1745631046818,-151.0,0.00016985,2]
[359011489,1745631046827,-500.0,0.00016986,2]
[359011490,1745631046837,-500.0,0.00016986,2]
[359011491,1745631046847,-500.0,0.00016986,2]
[359011492,1745631046857,-500.0,0.00016986,2]
[359011493,1745631046867,-500.0,0.00016986,2]
[359011494,1745631046876,-489.72706382,0.00016986,2]
[359011495,1745631046886,-500.0,0.00016986,2]
[359011496,1745631046895,-500.0,0.00016986,2]
[359011497,1745631046905,-500.0,0.00016986,2]
[359011498,1745631046915,-500.0,0.00016986,2]
[359011499,1745631046924,-500.0,0.00016986,2]
[359011500,1745631046933,-500.0,0.00016986,2]
[359011501,1745631046942,-500.0,0.00016986,2]
[359011502,1745631046951,-527.35771909,0.00016986,2]
[359011503,1745631046961,-500.0,0.00016986,2]
[359011504,1745631046970,-241.23719727,0.00016986,2]
[359011505,1745631046979,-500.0,0.00016986,2]
[359011506,1745631046989,-500.0,0.00016986,2]
[359011507,1745631046998,-500.0,0.00016986,2]
[359011508,1745631047007,-253.35,0.00016986,2]
[359011509,1745631047016,-500.0,0.00016986,2]
[359011510,1745631047026,-302.35938263,0.00016986,2]
[359011511,1745631047035,-500.0,0.00016986,2]
[359011512,1745631047044,-843.56,0.00016986,2]
[359011513,1745631047054,-500.0,0.00016986,2]
[359011514,1745631047063,-500.0,0.00016986,2]
[359011515,1745631047072,-500.0,0.00016986,2]
[359011516,1745631047081,-250.0,0.00016986,2]
[359011517,1745631047091,-693.06,0.00016986,2]
[359011518,1745631047101,-250.0,0.00016986,2]
[359011519,1745631047113,-500.0,0.00016986,2]
[359011520,1745631047123,-500.0,0.00016986,2]
[359011521,1745631047131,-500.0,0.00016986,2]
[359011522,1745631047141,-500.04982082,0.00016986,2]
[359011523,1745631047150,-1158.45,0.00016986,2]
[359011524,1745631047159,-500.0,0.00016986,2]
[359011525,1745631047168,-500.0,0.00016986,2]
[359011526,1745631047177,-526.06,0.00016986,2]
[359011527,1745631047187,-500.0,0.00016986,2]
[359011528,1745631047196,-500.0,0.00016986,2]
[359011529,1745631047205,-500.0,0.00016986,2]
[359011530,1745631047215,-500.0,0.00016986,2]
[359011531,1745631047224,-500.0,0.00016986,2]
[359011532,1745631047233,-500.0,0.00016986,2]
[359011533,1745631047243,-500.0,0.00016986,2]
[359011534,1745631047253,-863.46,0.00016986,2]
[359011535,1745631047262,-500.0,0.00016986,2]
[359011536,1745631047271,-511.89625325,0.00016986,2]
[359011537,1745631047280,-500.0,0.00016986,2]
[359011538,1745631047290,-500.0,0.00016986,2]
[359011539,1745631047300,-582.42,0.00016986,2]
[359011540,1745631047309,-968.31,0.00016986,2]
[359011541,1745631047318,-500.0,0.00016986,2]
[359011542,1745631047332,-500.0,0.00016986,2]
[359011543,1745631047341,-5253.35,0.00016986,2]
[359011544,1745631047350,-500.0,0.00016986,2]
[359011545,1745631047361,-593.55,0.00016986,2]
[359011546,1745631047372,-500.0,0.00016986,2]
[359011547,1745631047381,-151.0,0.00016986,2]
[359011548,1745631047391,-550.03,0.00016986,2]
[359011549,1745631047406,-500.0,0.00016986,2]
[359011550,1745631047417,-500.0,0.00016986,2]
[359011551,1745631047427,-500.0,0.00016986,2]
[359011552,1745631047437,-500.0,0.00016986,2]
[359011553,1745631047448,-570.62,0.00016986,2]
[359011554,1745631047458,-229.66,0.00016986,2]
[359011555,1745631047467,-500.0,0.00016986,2]
[359011556,1745631047476,-155.16,0.00016986,2]
[359011557,1745631047486,-5944.64,0.00016986,2]
[359011558,1745631047497,-500.0,0.00016986,2]
[359011559,1745631047507,-500.0,0.00016986,2]
[359011560,1745631047518,-500.0,0.00016986,2]
[359011561,1745631047528,-1199.12,0.00016986,2]
[359011562,1745631047537,-1545.67,0.00016986,2]
[359011563,1745631047547,-994.79,0.00016986,2]
[359011564,1745631047557,-500.0,0.00016986,2]
[359011565,1745631047566,-500.0,0.00016986,2]
[359011566,1745631047575,-500.0,0.00016986,2]
[359011567,1745631047585,-1056.13,0.00016986,2]
[359011568,1745631047595,-525.01,0.00016986,2]
[359011569,1745631047605,-500.0,0.00016986,2]
[359011570,1745631047614,-500.0,0.00016986,2]
[359011571,1745631047623,-500.0,0.00016986,2]
[359011572,1745631047633,-438.08047217,0.00016986,2]
[359011573,1745631047643,-500.0,0.00016986,2]
[359011574,1745631047653,-500.0,0.00016986,2]